{"text_format":"1","workbook":"xlsx","n_sheets":9,"sheets":["CAPA","Beneficiario","Projeto","CRITERIOS_SELECAO_AUTOVAL","Balanço empresa ","Balanço da empresa pós Proj","D. Resultados empresa","D. Result da empresa pós Proj","Folha2"],"not_rendered":{"charts":0,"images":14,"macros":0,"external_links":1,"defined_names":39,"comments":0,"pivot_tables":0},"unopened":[],"bounds":{"document_bytes":16777216,"sheet_cells":100000,"rows_first":2000,"rows_last":500,"rows_between":2000,"halvings":0,"cell_chars":16384,"cell_head_chars":4096},"cells_cut":0,"cells_raw":0,"read":"whole","date_system":"1900"}

{"sheet":"CAPA","index":0,"n_rows":16,"n_cols":16,"rows_kept":16,"cut":false,"hidden":false,"merged":[[8,2,8,17],[11,2,11,5],[0,17,0,19],[15,15,15,17]]}
[null,"V_3_09_07_2019_09_00"]
[]
[]
[]
[]
[]
[null,null,"BENEFICIÁRIO:"]
[]
[]
[]
[null,null,"NIF:"]
[]
[]
[null,null,"SISTEMA DE APOIO À COMPENSAÇÃO DOS CUSTOS ADICIONAIS DAS EMPRESAS DA REGIÃO AUTÓNOMA DA MADEIRA:"]
[]
[null,null,"FUNCIONAMENTO 2020 IV",null,null,null,null,null,null,null,null,null,null,null,null,"Portaria n.º 374/2019 de 08 de julho"]

{"sheet":"Beneficiario","index":1,"n_rows":34,"n_cols":4,"rows_kept":34,"cut":false,"hidden":false,"merged":[[4,2,4,15],[7,2,7,5],[11,2,11,15],[32,3,32,15],[33,3,33,15]]}
[]
[]
[null,null,"BENEFICIÁRIO:"]
[]
[null,null,{"$f":"+CAPA!C9","v":0}]
[]
[null,null,"NIF:"]
[null,null,{"$f":"+CAPA!C12","v":0}]
[]
[null,null,"SISTEMA DE INCENTIVOS:"]
[]
[null,null,{"$f":"+CAPA!C16","v":"FUNCIONAMENTO 2020 IV"}]
[]
[]
[null,null,"ANÁLISE DO MERCADO"]
[]
[null,null,"  "]
[]
[null,null,null,"Identificação do Beneficiário/ Evolução da empresa"]
[null,null,null," - Breve historial do beneficiário: estrutura societária, principais participações noutras empresas, evolução da actividade e qual atividade atual, onde desenvolve a sua atividade, etc."]
[]
[]
[]
[]
[]
[]
[]
[]
[]
[]
[]
[]
[null,null,null,"- Identificação detalhada de candidaturas aprovadas no SI FUNCIONAMENTO/Emprego/Formação Profissional\n- Deverá incluir nº de candidatura, período de elegibilidade, nº de postos de trabalho afetos, se aplicável.                                                                                                  - Identificar se no período de elegibilidade a empresa teve apoios no âmbito dos estágios profissionais. Em caso afirmativo identificar o nome dos estagiários. \n\n- Deverá incluir "]
[null,null,null,"- Deverá incluir qual o período em que foi pontuado no critério  C1 – Contributo do projeto para esbater as dificuldades estruturais, relativo à candidatura anterior ao Funcionamento 2020."]

{"sheet":"Projeto","index":2,"n_rows":89,"n_cols":20,"rows_kept":89,"cut":false,"hidden":false,"merged":[[77,9,77,11],[48,3,50,6],[28,3,30,6],[32,3,34,6],[36,3,38,6],[40,3,42,6],[44,3,46,6],[76,9,76,11],[52,3,54,6],[56,3,56,18],[58,3,59,18],[61,3,63,6],[73,9,73,11],[74,3,74,8],[74,9,74,11],[60,7,60,13],[7,3,9,6],[8,8,8,10],[14,3,16,6],[26,3,26,9],[7,13,9,19],[12,7,12,9],[13,3,13,9],[22,3,24,6],[18,3,20,6],[75,3,75,8],[75,9,75,11],[72,3,72,18],[62,8,62,12],[65,3,67,6],[66,8,66,12],[69,3,71,6],[70,8,70,12],[81,12,81,18],[81,3,81,8],[81,9,81,11],[88,2,88,18],[78,3,78,8],[78,9,78,11],[79,3,79,8],[79,9,79,11],[80,3,80,8],[80,9,80,11],[82,3,82,8],[82,9,82,11],[83,3,83,8],[83,9,83,11],[84,9,84,11],[83,13,83,18]]}
[]
[]
[]
[null,null,"DADOS GERAIS DA CANDIDATURA"]
[]
[null,null,"DADOS DO PROJETO"]
[]
[null,null,null,"Ano que prevê receber o incentivo",null,null,null,null,null,null,null,null,null,"Ano que prevê receber o incentivo, não podendo ultrapassar o exercício seguinte ao da data da candidatura"]
[]
[]
[]
[]
[null,null,null,null,null,null,null,"(colocar um x nos itens aplicáveis)"]
[null,null,null,"a) Custos de transporte de mercadorias produzidas na Região Autónoma da Madeira, bem como os custos de transporte de mercadorias ali reprocessadas"]
[null,null,null,"ai) Custos de transporte de mercadorias produzidas na RAM, importadas e reprocessadas na Região Autónoma da Madeira;"]
[]
[]
[]
[null,null,null,"aii) Custos de transportes, entre a Região Autónoma da Madeira e o restante território nacional, de mercadorias produzidas na Região para Não PME;"]
[]
[]
[]
[null,null,null,"aiii) Custos de transportes, entre a Região Autónoma da Madeira e o restante território nacional, de mercadorias produzidas na Região para empresas licenciadas na Zona Franca da Madeira;"]
[]
[]
[]
[null,null,null,"b) Outros custos de funcionamento:"]
[]
[null,null,null,"i) Salário bruto;"]
[]
[]
[]
[null,null,null,"ii) Contribuições obrigatórias para a segurança social;"]
[]
[]
[]
[null,null,null,"iii) Rendas de instalações;"]
[]
[]
[]
[]
[]
[]
[]
[null,null,null,"iv) Custos com o consumo de energia elétrica e respetivas taxas;"]
[]
[]
[]
[null,null,null,"v) Custos com o consumo de água e respetivas taxas;"]
[]
[]
[]
[null,null,null,"vi) Custos com a prestação dos serviços de contabilidade até ao limite de €2.000"]
[]
[]
[]
[null,null,null,"LIMITES"]
[]
[null,null,null,"O montante anual do auxílio por beneficiário, a título de todos os regimes de auxílio ao funcionamento implementados ao abrigo do Regulamento (UE) n.º 651/2014, de 16 de junho, alterado pelo Regulamento (UE) n.º 2017/1084 da Comissão, de 14 de junho, não pode exceder o mais favorável dos seguintes limites:"]
[]
[null,null,null,null,null,null,null,"(inserir os montantes em euros)"]
[null,null,null,"a) 35% do valor acrescentado bruto gerado anualmente pelo beneficiário no exercício económico anterior ao da candidatura; "]
[]
[]
[]
[null,null,null,"b) 40% dos custos anuais de mão de obra suportados pelo beneficiário no exercício económico anterior ao da candidatura; "]
[]
[]
[]
[null,null,null,"c) 30% do volume anual de negócios gerado no exercício económico anterior ao da candidatura. "]
[]
[]
[null,null,null,"Sem prejuízo dos limites atrás referidos, o apoio a conceder às despesas elegíveis de funcionamento estabelecidas no artigo 14º do Regulamento do Funcionamento 2020, (custos com transporte e outros custos de funcionamento), está igualmente sujeito aos seguintes limites:"]
[null,null,null,"Limite incentivo - despesas previstas na alínea a) do número 1 do artigo 14º do Regulamento",null,null,null,null,null,200000]
[null,null,null,"Limite incentivo - despesas previstas na alínea b) do número 1 do artigo 14º do Regulamento, para micro empresas",null,null,null,null,null,15000]
[null,null,null,"Limite incentivo - despesas previstas na alínea b) do número 1 do artigo 14º do Regulamento, para pequenas e médias empresas",null,null,null,null,null,20000]
[]
[null,null,null,null,null,null,null,null,null,"(inserir o nº de postos de trabalho)"]
[null,null,null," - Totalidade P.trabalho (nº)",null,null,null,null,null,{"$f":"+J80+J81","v":0}]
[null,null,null," - Manutenção de P.trabalho (nº)",null,null,null,null,null,{"$f":"+J83","v":0}]
[null,null,null," - Criação de P.trabalho (nº)"]
[null,null,null," - Criação de Jovens (nº)",null,null,null,null,null,null,null,null,{"$f":"+IF(J82>J81, \"erro, criação jovem maior que a criação total\",\"\")","v":""}]
[null,null,null," - Postos de trabalho existentes no mês anterior à data da candidatura (nº)"]
[null,null,null," - Postos de trabalho existentes em dezembro do ano anterior à data da candidatura (nº)",null,null,null,null,null,null,null,null,null,{"$f":"+IF(J84>J83, \"Altera o período de elegibilidade\",\"\")","v":""}]
[]
[]
[]
[]
[null,null,null,null,null,null,null,null,null,null,null,null,null,null,null,null,null,null,null,4]

{"sheet":"CRITERIOS_SELECAO_AUTOVAL","index":3,"n_rows":165,"n_cols":10,"rows_kept":165,"cut":false,"hidden":false,"merged":[[3,2,3,11],[158,3,158,11],[153,3,153,11],[6,2,6,5],[12,2,12,11],[99,3,99,10],[81,3,81,10],[109,3,109,11],[16,8,16,9],[97,8,97,9]]}
[]
[null,null,"BENEFICIÁRIO:"]
[]
[null,null,{"$f":"+CAPA!C9","v":0}]
[]
[null,null,"NIF:"]
[null,null,{"$f":"+CAPA!C12","v":0}]
[]
[null,null,"SISTEMA DE INCENTIVOS:"]
[]
[null,null,{"$f":"+CAPA!C16","v":"FUNCIONAMENTO 2020 IV"}]
[]
[null,null,"Critérios de Seleção – Autoavaliação do Beneficiário"]
[]
[null,null,"  "]
[]
[null,null,null,"CRITÉRIO DE SELEÇÃO A – Desempenho económico-financeiro do beneficiário",null,null,null,null,"A = 0,55 (∆IR) + 0,45 (∆IF)"]
[]
[]
[null,null,null,"Fundamentação"]
[null,null,null," - Impacto do projeto na sustentabilidade da empresa"]
[]
[]
[]
[]
[]
[]
[]
[]
[]
[]
[]
[]
[]
[]
[]
[null,null,null,"Apresentar os valores apurados para:"]
[null,null,null,"ML ano n",null,"(inserir)","ML ano n-1",null,"(inserir)"]
[null,null,null,"VN ano n",null,"(inserir)","VN ano n-1",null,"(inserir)"]
[]
[null,null,null,null,null,null,null,null,null,{"$f":"+IF(ISERROR(((E38/E39)-(H38/H39))),\"\",((E38/E39)-(H38/H39)))","v":""}]
[]
[]
[]
[]
[]
[]
[]
[]
[]
[]
[]
[]
[]
[]
[null,null,null,"Apresentar os valores apurados para:"]
[null,null,null,"Capital Próprio ano n",null,"(inserir)","Capital Próprio ano n-1",null,"(inserir)"]
[null,null,null,"Passivo ano n",null,"(inserir)","Passivo ano n-1",null,"(inserir)"]
[]
[null,null,null,null,null,null,null,null,null,{"$f":"+IF(ISERROR(((E57/E58)-(H57/H58))),\"\",((E57/E58)-(H57/H58)))","v":""}]
[null,null,null,null,null,null,null,{"$f":"+IF(ISERROR(((E57/E58)-(H57/H58))),\"\",((E57/E58)-(H57/H58)))","v":""}]
[]
[]
[]
[null,null,null,"Fundamentação:"]
[]
[]
[]
[]
[]
[]
[]
[]
[]
[]
[]
[]
[]
[]
[null,null,null,"Critérios de Seleção B – Contributo do projeto para a estabilização do mercado laboral"]
[null,null,null,"Fundamentação"]
[null,null,null,"- Identificar o nº de postos de trabalho a manter e a criar:"]
[]
[]
[]
[]
[]
[]
[]
[]
[]
[]
[]
[]
[]
[]
[]
[null,null,null,"Critério C - Contributo do projeto para a competitividade regional ",null,null,null,null,"C = 0,60 C1 + 0,40 C2"]
[]
[null,null,null,"C1 – Contributo do projeto para esbater as dificuldades estruturais (A capacidade de investimento do beneficiário será considerado entre o início do período de elegibilidade até à data da apresentação do pedido de pagamento. Investimentos pontuais com fraco impacto não são considerados para efeitos de pontuação)."]
[]
[null,null,null,"a) Tecnologias da informação e comunicação;"]
[null,null,null,"b) Formação dos recursos humanos;"]
[null,null,null,"c) Sustentabilidade, gestão e manutenção de infraestruturas produtivas;"]
[null,null,null,"d) Melhoria das condições ambientais;"]
[null,null,null,"e) Gestão organizacional;"]
[null,null,null,"f) Certificação da Qualidade;"]
[null,null,null,"g) Eficiência energética;"]
[null,null,null,"h) Investigação, Desenvolvimento Tecnológico e Inovação;"]
[null,null,null,"i)\t Reforço da cadeia de valor regional. Apenas para as candidaturas que no desenvolvimento da sua atividade incorram em despesas em custos de transporte previstas na alínea a) do número 1 do artigo 14.º do presente Regulamento."]
[null,null,null,"Fundamentação:"]
[]
[]
[]
[]
[]
[]
[]
[]
[]
[]
[]
[]
[]
[]
[]
[]
[null,null,null,"C2 - Contributo do projeto para o reforço da integridade fiscal "]
[null,null,null,"Apresentar os valores apurados para:"]
[]
[null,null,null,"VN ano n",null,"(inserir)",null,null,{"$f":"+IF(ISERROR(((E131-E132)/E132)),\"\",(((E131-E132)/E132)))","v":""}]
[null,null,null,"VN ano n-1",null,"(inserir)"]
[]
[null,null,null,"Fundamentação:"]
[]
[]
[]
[]
[]
[]
[]
[]
[]
[]
[]
[]
[]
[]
[null,null,null,"Notas:"]
[]
[null,null,null,"Critério A:"]
[null,null,null,"∆IR = variação dos indicadores de rentabilidade "]
[null,null,null,"∆IF = variação dos indicadores financeiros "]
[null,null,null,"Meios libertos (ML) = Resultado líquido do período + Imparidade de inventários (perdas/reversões) + Imparidade de dívidas a receber (perdas/reversões) + Provisões (perdas/reduções) + Imparidade de investimentos não depreciáveis/amortizações (perdas/reversões) + Aumentos/reduções de justo valor + Gastos/reversões de depreciação e de amortização + Imparidade de investimentos depreciáveis/amortizáveis (perdas/reversões) "]
[null,null,null,"Volume de Negócios (VN) = Vendas de Produtos + Vendas de Mercadorias + Prestação de serviços "]
[null,null,null,"Ano (n-1) = corresponde ao ano anterior à data da candidatura "]
[null,null,null,"Ano (n) = corresponde ao ano que prevê receber o incentivo, não podendo ultrapassar o exercício seguinte ao da data da candidatura"]
[]
[null,null,null,"Para o cálculo dos referidos indicadores será utilizado o balanço e a demonstração de resultados referente ao final do exercício anterior ao da data da candidatura e as contas previsionais do ano n (plano de negócios)."]
[]
[null,null,null,"Critério B:"]
[null,null,null,"Para efeito de manutenção de postos de trabalho considera-se o volume de emprego existente no mês anterior à data da candidatura."]
[null,null,null,"Os estagiários ou colaboradores equiparados não contam para a manutenção dos postos de trabalho do beneficiário."]
[null,null,null,"Subcritério C2:"]
[null,null,null,"Volume de Negócios (VN) = Vendas de Produtos + Vendas de Mercadorias + Prestação de serviços"]

{"sheet":"Balanço empresa ","index":4,"n_rows":84,"n_cols":18,"rows_kept":84,"cut":false,"hidden":false,"merged":[[6,2,6,5],[3,2,3,17],[16,3,16,4],[16,16,16,17],[12,2,12,18],[14,2,14,7],[14,8,14,10],[10,2,10,18],[13,8,13,10],[17,3,17,13],[17,14,17,15],[18,3,18,13],[18,14,18,15],[19,3,19,13],[19,14,19,15],[20,3,20,13],[20,14,20,15],[21,3,21,13],[21,14,21,15],[22,3,22,13],[22,14,22,15],[23,3,23,13],[23,14,23,15],[24,3,24,13],[24,14,24,15],[25,3,25,13],[25,14,25,15],[26,3,26,13],[26,14,26,15],[27,3,27,13],[27,14,27,15],[28,3,28,13],[28,14,28,15],[40,14,40,15],[30,3,30,13],[30,14,30,15],[31,14,31,15],[32,14,32,15],[33,14,33,15],[34,14,34,15],[35,14,35,15],[36,14,36,15],[37,14,37,15],[38,14,38,15],[39,14,39,15],[41,14,41,15],[42,14,42,15],[43,14,43,15],[44,14,44,15],[46,3,46,13],[46,14,46,15],[58,14,58,15],[47,14,47,15],[48,14,48,15],[49,14,49,15],[50,14,50,15],[51,14,51,15],[52,14,52,15],[53,14,53,15],[54,14,54,15],[55,14,55,15],[56,14,56,15],[57,14,57,15],[71,14,71,15],[59,14,59,15],[60,14,60,15],[62,14,62,15],[63,14,63,15],[64,14,64,15],[65,14,65,15],[66,14,66,15],[67,14,67,15],[68,14,68,15],[69,14,69,15],[70,14,70,15],[83,14,83,15],[72,14,72,15],[73,14,73,15],[74,14,74,15],[75,14,75,15],[76,14,76,15],[77,14,77,15],[78,14,78,15],[79,14,79,15],[80,14,80,15],[81,14,81,15],[82,14,82,15]]}
[]
[null,null,"BENEFICIÁRIO:"]
[]
[null,null,{"$f":"+CAPA!C9","v":0}]
[]
[null,null,"NIF:"]
[null,null,{"$f":"+CAPA!C12","v":0}]
[]
[null,null,"SISTEMA DE INCENTIVOS:"]
[]
[null,null,{"$f":"+CAPA!C16","v":"FUNCIONAMENTO 2020 IV"}]
[]
[null,null,"BALANÇO DA EMPRESA Pré candidatura"]
[null,null,null,null,null,null,null,null,"(inserir data)"]
[null,null,"Data da candidatura:"]
[]
[null,null,null,"(euros)"]
[null,null,null,"ACTIVO",null,null,null,null,null,null,null,null,null,null,"Notas",null,{"$f":"IF(YEAR($I$15)=\"\",\"\",YEAR($I$15)-2)","v":1898},{"$f":"IF(YEAR($I$15)=\"\",\"\",YEAR($I$15)-1)","v":1899}]
[null,null,null,"Activo não corrente"]
[null,null,null,"activos fixos tangíveis"]
[null,null,null,"Propriedades de investimento"]
[null,null,null,"Goodwill"]
[null,null,null,"Activos Intangíveis"]
[null,null,null,"Activos biológicos"]
[null,null,null,"Participações financeiras - método da equivalência patrimonial"]
[null,null,null,"Participações financeiras - outros métodos"]
[null,null,null,"Accionistas/sócios"]
[null,null,null,"Outros activos financeiros"]
[null,null,null,"Activos por impostos diferidos"]
[null,null,null,null,null,null,null,null,null,null,null,null,null,null,null,null,{"$f":"+Q19+Q20+Q21+Q22+Q23+Q24+Q25+Q26+Q27+Q28+Q29","v":0},0]
[null,null,null,"Activo corrente"]
[null,null,null,"Inventários "]
[null,null,null,"Activos biológicos"]
[null,null,null,"Clientes"]
[null,null,null,"Adiantamentos a fornecedores"]
[null,null,null,"Estado e outros entes públicos"]
[null,null,null,"Accionistas/sócios"]
[null,null,null,"Outras contas a receber"]
[null,null,null,"Diferimentos"]
[null,null,null,"Activos financeiros detidos para negociação"]
[null,null,null,"Outros activos financeiros"]
[null,null,null,"Activos não correntes detidos para venda"]
[null,null,null,"Caixa e depósitos bancários"]
[null,null,null,null,null,null,null,null,null,null,null,null,null,null,null,null,{"$f":"+Q31+Q32+Q33+Q34+Q35+Q36+Q37+Q38+Q39+Q40+Q41+Q42+Q43","v":0},0]
[null,null,null,"TOTAL DO ACTIVO",null,null,null,null,null,null,null,null,null,null,null,null,{"$f":"+Q30+Q44","v":0},0]
[]
[null,null,null,"CAPITAL PRÓPRIO E PASSIVO"]
[null,null,null,"CAPITAL PRÓPRIO  "]
[null,null,null,"Capital realizado"]
[null,null,null,"Acções (quotas) próprias "]
[null,null,null,"Outros instrumentos de capital próprio"]
[null,null,null,"Prémios de emissão"]
[null,null,null,"Reservas legais"]
[null,null,null,"Outras reservas"]
[null,null,null,"Resultados transitados"]
[null,null,null,"Ajustamentos em activos financeiros"]
[null,null,null,"Excedentes de revalorização"]
[null,null,null,"Outras variações no capital próprio"]
[null,null,null,"Resultado líquido do período "]
[null,null,null,"Interesses minoritários"]
[null,null,null,"Total do capital próprio",null,null,null,null,null,null,null,null,null,null,null,null,{"$f":"+Q48+Q49+Q50+Q51+Q52+Q53+Q54+Q55+Q56+Q57+Q58+Q59+Q60","v":0},0]
[]
[null,null,null,"Passivo"]
[null,null,null,"Passivo não corrente"]
[null,null,null,"Provisões"]
[null,null,null,"Financiamentos obtidos"]
[null,null,null,"Responsabilidades por belefícios pós-emprego"]
[null,null,null,"Passivos por impostos diferidos"]
[null,null,null,"Outras contas a pagar"]
[null,null,null,null,null,null,null,null,null,null,null,null,null,null,null,null,{"$f":"+Q63+Q64+Q65+Q66+Q67+Q68+Q69","v":0},0]
[null,null,null,"Passivo corrente"]
[null,null,null,"Fornecedores"]
[null,null,null,"Adiantamento de clientes"]
[null,null,null,"Estado e outros entes públicos"]
[null,null,null,"Accionistas/sócios"]
[null,null,null,"Financiamentos obtidos"]
[null,null,null,"Outras contas a pagar"]
[null,null,null,"Diferimentos"]
[null,null,null,"Passivos financeiros detidos para negociação"]
[null,null,null,"Outros passivos financeiros"]
[null,null,null,"Passivos não correntes detidos para venda"]
[null,null,null,null,null,null,null,null,null,null,null,null,null,null,null,null,{"$f":"+Q71+Q72+Q73+Q74+Q75+Q76+Q77+Q78+Q79+Q80+Q81","v":0},0]
[null,null,null,"Total do passivo",null,null,null,null,null,null,null,null,null,null,null,null,{"$f":"+Q70+Q82","v":0},0]
[null,null,null,"Total do capital próprio e do passivo",null,null,null,null,null,null,null,null,null,null,null,null,{"$f":"+Q61+Q83","v":0},0]

{"sheet":"Balanço da empresa pós Proj","index":5,"n_rows":84,"n_cols":26,"rows_kept":84,"cut":false,"hidden":false,"merged":[[16,3,16,4],[16,16,16,25],[12,2,12,26],[14,2,14,7],[14,8,14,10],[17,3,17,13],[17,14,17,15],[18,3,18,13],[18,14,18,15],[19,3,19,13],[19,14,19,15],[20,3,20,13],[20,14,20,15],[21,3,21,13],[21,14,21,15],[22,3,22,13],[22,14,22,15],[23,3,23,13],[23,14,23,15],[24,3,24,13],[24,14,24,15],[25,3,25,13],[25,14,25,15],[26,3,26,13],[26,14,26,15],[27,3,27,13],[27,14,27,15],[28,3,28,13],[28,14,28,15],[40,14,40,15],[30,3,30,13],[30,14,30,15],[31,14,31,15],[32,14,32,15],[33,14,33,15],[34,14,34,15],[35,14,35,15],[36,14,36,15],[37,14,37,15],[38,14,38,15],[39,14,39,15],[41,14,41,15],[42,14,42,15],[43,14,43,15],[44,14,44,15],[46,3,46,13],[46,14,46,15],[70,14,70,15],[58,14,58,15],[47,14,47,15],[48,14,48,15],[49,14,49,15],[50,14,50,15],[51,14,51,15],[52,14,52,15],[53,14,53,15],[54,14,54,15],[55,14,55,15],[56,14,56,15],[57,14,57,15],[65,14,65,15],[66,14,66,15],[67,14,67,15],[68,14,68,15],[69,14,69,15],[59,14,59,15],[60,14,60,15],[62,14,62,15],[63,14,63,15],[64,14,64,15],[10,2,10,26],[3,2,3,17],[6,2,6,5],[83,14,83,15],[72,14,72,15],[73,14,73,15],[74,14,74,15],[75,14,75,15],[76,14,76,15],[77,14,77,15],[78,14,78,15],[79,14,79,15],[80,14,80,15],[81,14,81,15],[82,14,82,15],[71,14,71,15]]}
[]
[null,null,"BENEFICIÁRIO:"]
[]
[null,null,{"$f":"+CAPA!C9","v":0}]
[]
[null,null,"NIF:"]
[null,null,{"$f":"+CAPA!C12","v":0}]
[]
[null,null,"SISTEMA DE INCENTIVOS:"]
[]
[null,null,{"$f":"+CAPA!C16","v":"FUNCIONAMENTO 2020 IV"}]
[]
[null,null,"BALANÇO DA EMPRESA PÓS PROJECTO"]
[]
[null,null,{"$f":"+'Balanço empresa '!C15","v":"Data da candidatura:"},null,null,null,null,null,{"$f":"+'Balanço empresa '!I15:K15","v":"00:00:00"}]
[]
[null,null,null,"(euros)",null,null,null,null,null,null,null,null,null,null,null,null,"EMPRESA PÓS PROJETO"]
[null,null,null,"ACTIVO",null,null,null,null,null,null,null,null,null,null,"Notas",null,{"$f":"IF(YEAR($I$15)=\"\",\"\",YEAR($I$15))","v":1900},{"$f":"IF(YEAR($I$15)=\"\",\"\",YEAR($I$15)+1)","v":1901},{"$f":"IF(YEAR($I$15)=\"\",\"\",YEAR($I$15)+2)","v":1902},{"$f":"IF(YEAR($I$15)=\"\",\"\",YEAR($I$15)+3)","v":1903},{"$f":"IF(YEAR($I$15)=\"\",\"\",YEAR($I$15)+4)","v":1904},{"$f":"IF(YEAR($I$15)=\"\",\"\",YEAR($I$15)+5)","v":1905},{"$f":"IF(YEAR($I$15)=\"\",\"\",YEAR($I$15)+6)","v":1906},{"$f":"IF(YEAR($I$15)=\"\",\"\",YEAR($I$15)+7)","v":1907},{"$f":"IF(YEAR($I$15)=\"\",\"\",YEAR($I$15)+8)","v":1908},{"$f":"IF(YEAR($I$15)=\"\",\"\",YEAR($I$15)+9)","v":1909}]
[null,null,null,"Activo não corrente"]
[null,null,null,"activos fixos tangíveis"]
[null,null,null,"Propriedades de investimento"]
[null,null,null,"Goodwill"]
[null,null,null,"Activos Intangíveis"]
[null,null,null,"Activos biológicos"]
[null,null,null,"Participações financeiras - método da equivalência patrimonial"]
[null,null,null,"Participações financeiras - outros métodos"]
[null,null,null,"Accionistas/sócios"]
[null,null,null,"Outros activos financeiros"]
[null,null,null,"Activos por impostos diferidos"]
[null,null,null,null,null,null,null,null,null,null,null,null,null,null,null,null,{"$f":"+Q20+Q21+Q22+Q23+Q24+Q25+Q26+Q27+Q28+Q29","v":0},{"$f":"+R20+R21+R22+R23+R24+R25+R26+R27+R28+R29","v":0},0,0,0,0,0,0,0,0]
[null,null,null,"Activo corrente"]
[null,null,null,"Inventários "]
[null,null,null,"Activos biológicos"]
[null,null,null,"Clientes"]
[null,null,null,"Adiantamentos a fornecedores"]
[null,null,null,"Estado e outros entes públicos"]
[null,null,null,"Accionistas/sócios"]
[null,null,null,"Outras contas a receber"]
[null,null,null,"Diferimentos"]
[null,null,null,"Activos financeiros detidos para negociação"]
[null,null,null,"Outros activos financeiros"]
[null,null,null,"Activos não correntes detidos para venda"]
[null,null,null,"Caixa e depósitos bancários"]
[null,null,null,null,null,null,null,null,null,null,null,null,null,null,null,null,{"$f":"+Q32+Q33+Q34+Q35+Q36+Q37+Q38+Q39+Q40+Q41+Q42+Q43","v":0},{"$f":"+R32+R33+R34+R35+R36+R37+R38+R39+R40+R41+R42+R43","v":0},0,0,0,0,0,0,0,0]
[null,null,null,"TOTAL DO ACTIVO",null,null,null,null,null,null,null,null,null,null,null,null,{"$f":"+Q30+Q44","v":0},0,0,0,0,0,0,0,0,0]
[]
[null,null,null,"CAPITAL PRÓPRIO E PASSIVO"]
[null,null,null,"CAPITAL PRÓPRIO  "]
[null,null,null,"Capital realizado"]
[null,null,null,"Acções (quotas) próprias "]
[null,null,null,"Outros instrumentos de capital próprio"]
[null,null,null,"Prémios de emissão"]
[null,null,null,"Reservas legais"]
[null,null,null,"Outras reservas"]
[null,null,null,"Resultados transitados"]
[null,null,null,"Ajustamentos em activos financeiros"]
[null,null,null,"Excedentes de revalorização"]
[null,null,null,"Outras variações no capital próprio"]
[null,null,null,"Resultado líquido do período "]
[null,null,null,"Interesses minoritários"]
[null,null,null,"Total do capital próprio",null,null,null,null,null,null,null,null,null,null,null,null,{"$f":"+Q48+Q49+Q50+Q51+Q52+Q53+Q54+Q55+Q56+Q57+Q58+Q59+Q60","v":0},0,0,0,0,0,0,0,0,0]
[]
[null,null,null,"Passivo"]
[null,null,null,"Passivo não corrente"]
[null,null,null,"Provisões"]
[null,null,null,"Financiamentos obtidos"]
[null,null,null,"Responsabilidades por belefícios pós-emprego"]
[null,null,null,"Passivos por impostos diferidos"]
[null,null,null,"Outras contas a pagar"]
[null,null,null,null,null,null,null,null,null,null,null,null,null,null,null,null,{"$f":"++Q65+Q66+Q67+Q68+Q69","v":0},{"$f":"+R63+R64+R65+R66+R67+R68+R69","v":0},0,0,0,0,0,0,0,0]
[null,null,null,"Passivo corrente"]
[null,null,null,"Fornecedores"]
[null,null,null,"Adiantamento de clientes"]
[null,null,null,"Estado e outros entes públicos"]
[null,null,null,"Accionistas/sócios"]
[null,null,null,"Financiamentos obtidos"]
[null,null,null,"Outras contas a pagar"]
[null,null,null,"Diferimentos"]
[null,null,null,"Passivos financeiros detidos para negociação"]
[null,null,null,"Outros passivos financeiros"]
[null,null,null,"Passivos não correntes detidos para venda"]
[null,null,null,null,null,null,null,null,null,null,null,null,null,null,null,null,{"$f":"+Q72+Q73+Q74+Q75+Q76+Q77+Q78+Q79+Q80+Q81","v":0},{"$f":"+R72+R73+R74+R75+R76+R77+R78+R79+R80+R81","v":0},0,0,0,0,0,0,0,0]
[null,null,null,"Total do passivo",null,null,null,null,null,null,null,null,null,null,null,null,{"$f":"+Q70+Q82","v":0},0,0,0,0,0,0,0,0,0]
[null,null,null,"Total do capital próprio e do passivo",null,null,null,null,null,null,null,null,null,null,null,null,{"$f":"+Q61+Q83","v":0},0,0,0,0,0,0,0,0,0]

{"sheet":"D. Resultados empresa","index":6,"n_rows":54,"n_cols":18,"rows_kept":54,"cut":false,"hidden":false,"merged":[[3,2,3,17],[6,2,6,5],[12,2,12,18],[15,16,15,17],[10,2,10,18],[19,3,19,13],[22,3,22,13],[16,3,16,13],[17,3,17,13],[17,14,17,15],[18,3,18,13],[26,3,26,13],[27,3,27,13],[28,3,28,13],[23,3,23,13],[24,3,24,13],[25,3,25,13],[32,3,32,13],[33,3,33,13],[34,3,34,13],[29,3,29,13],[30,3,30,13],[31,3,31,13],[38,3,38,13],[39,3,39,13],[40,3,40,13],[35,3,35,13],[36,3,36,13],[37,3,37,13],[41,3,41,13],[43,3,43,13],[43,14,43,15],[45,3,45,13],[45,14,45,15],[49,3,49,13],[49,14,49,15],[46,3,46,13],[46,14,46,15],[47,3,47,13],[47,14,47,15],[51,3,51,13],[51,14,51,15],[52,3,52,13],[52,14,52,15],[53,3,53,13],[53,14,53,15]]}
[]
[null,null,"BENEFICIÁRIO:"]
[]
[null,null,{"$f":"+CAPA!C9","v":0}]
[]
[null,null,"NIF:"]
[null,null,{"$f":"+CAPA!C12","v":0}]
[]
[null,null,"SISTEMA DE INCENTIVOS:"]
[]
[null,null,{"$f":"+CAPA!C16","v":"FUNCIONAMENTO 2020 IV"}]
[]
[null,null,"DEMONSTRAÇÃO DE RESULTADOS pré candidatura"]
[null,null,"  "]
[]
[]
[null,null,null,null,null,null,null,null,null,null,null,null,null,null,"Notas",null,{"$f":"+'Balanço empresa '!Q18","v":1898},{"$f":"+'Balanço empresa '!R18","v":1899}]
[null,null,null,"RENDIMENTOS E GASTOS"]
[null,null,null,"Vendas e serviços prestados",null,null,null,null,null,null,null,null,null,null,null,"+"]
[null,null,null,"Subsídios à exploração",null,null,null,null,null,null,null,null,null,null,null,"+"]
[null,null,null,"Ganhos/perdas imputados de subsidiárias, associadas e empreendimentos conjuntos",null,null,null,null,null,null,null,null,null,null,null,"+/-"]
[null,null,null,"Variação nos inventários da produção",null,null,null,null,null,null,null,null,null,null,null,"+/-"]
[null,null,null,"Trabalhos para a própria entidade",null,null,null,null,null,null,null,null,null,null,null,"+"]
[null,null,null,"Custo das mercadorias vendidas e das matérias consumidas",null,null,null,null,null,null,null,null,null,null,null,"-"]
[null,null,null,"Fornecimentos e serviços externos",null,null,null,null,null,null,null,null,null,null,null,"-"]
[null,null,null,"Gastos com o pessoal",null,null,null,null,null,null,null,null,null,null,null,"-"]
[null,null,null,"Imparidade de inventários (perdas/reversões)",null,null,null,null,null,null,null,null,null,null,null,"-/+"]
[null,null,null,"Imparidade de dívidas a receber (perdas/reversões)",null,null,null,null,null,null,null,null,null,null,null,"-/+"]
[null,null,null,"Provisões (perdas/reduções)",null,null,null,null,null,null,null,null,null,null,null,"-/+"]
[null,null,null,"Imparidade de investimentos não depreciáveis/amortizações (perdas/reversões)",null,null,null,null,null,null,null,null,null,null,null,"-/+"]
[null,null,null,"Aumentos/reduções de justo valor",null,null,null,null,null,null,null,null,null,null,null,"+/-"]
[null,null,null,"Outros rendimentos e ganhos",null,null,null,null,null,null,null,null,null,null,null,"+"]
[null,null,null,"Outros gastos e perdas",null,null,null,null,null,null,null,null,null,null,null,"-"]
[null,null,null,"Resultados antes de depreciações, gastos de financiamento e impostos",null,null,null,null,null,null,null,null,null,null,null,"=",{"$f":"SUM(Q19:Q33)","v":0},{"$f":"SUM(R19:R33)","v":0}]
[null,null,null,"Gastos/reversões de depreciação e de amortização",null,null,null,null,null,null,null,null,null,null,null,"-/+"]
[null,null,null,"Imparidade de investimentos depreciáveis/amorizáveis (perdas/reversões)",null,null,null,null,null,null,null,null,null,null,null,"-/+"]
[null,null,null,"Resultado operacional (antes de gastos de financiamento e impostos)",null,null,null,null,null,null,null,null,null,null,null,"=",{"$f":"+Q34+Q35+Q36","v":0},0]
[null,null,null,"Juros e rendimentos similares obtidos",null,null,null,null,null,null,null,null,null,null,null,"+"]
[null,null,null,"Juros e gastos similares suportados",null,null,null,null,null,null,null,null,null,null,null,"-"]
[null,null,null,"Resultado antes de impostos",null,null,null,null,null,null,null,null,null,null,null,"=",{"$f":"+Q37+Q38+Q39","v":0},0]
[null,null,null,"Imposto sobre o rendimento do período",null,null,null,null,null,null,null,null,null,null,null,"-/+"]
[null,null,null,"Resultado líquido do período",null,null,null,null,null,null,null,null,null,null,null,"=",{"$f":"+Q40+Q41","v":0},0]
[]
[null,null,null,"Resultado das actividades descontinuadas (líquido de impostos) incluido no resultado líquido do período"]
[]
[null,null,null,"Resultado líquido do período atribuível a: (2)"]
[null,null,null,"Detentores do capital da empresa-mãe"]
[null,null,null,"Interesses minoritários"]
[null,null,null,null,null,null,null,null,null,null,null,null,null,null,null,"=",{"$f":"+Q47+Q48","v":0},0]
[null,null,null,"Resultado por acção básico"]
[]
[null,null,null,"Outros Dados"]
[null,null,null,"Gastos de Amortização"]
[null,null,null,"Volume de Negócios Internacional "]

{"sheet":"D. Result da empresa pós Proj","index":7,"n_rows":54,"n_cols":26,"rows_kept":54,"cut":false,"hidden":false,"merged":[[3,2,3,17],[6,2,6,5],[12,2,12,26],[15,16,15,25],[13,16,13,26],[10,2,10,26],[19,3,19,13],[22,3,22,13],[16,3,16,13],[17,3,17,13],[17,14,17,15],[18,3,18,13],[26,3,26,13],[27,3,27,13],[28,3,28,13],[23,3,23,13],[24,3,24,13],[25,3,25,13],[32,3,32,13],[33,3,33,13],[34,3,34,13],[29,3,29,13],[30,3,30,13],[31,3,31,13],[38,3,38,13],[39,3,39,13],[40,3,40,13],[35,3,35,13],[36,3,36,13],[37,3,37,13],[41,3,41,13],[43,3,43,13],[43,14,43,15],[45,3,45,13],[45,14,45,15],[49,3,49,13],[49,14,49,15],[46,3,46,13],[46,14,46,15],[47,3,47,13],[47,14,47,15],[51,3,51,13],[51,14,51,15],[52,3,52,13],[52,14,52,15],[53,3,53,13],[53,14,53,15]]}
[]
[null,null,"BENEFICIÁRIO:"]
[]
[null,null,{"$f":"+CAPA!C9","v":0}]
[]
[null,null,"NIF:"]
[null,null,{"$f":"+CAPA!C12","v":0}]
[]
[null,null,"SISTEMA DE INCENTIVOS:"]
[]
[null,null,{"$f":"+CAPA!C16","v":"FUNCIONAMENTO 2020 IV"}]
[]
[null,null,"DEMONSTRAÇÃO DE RESULTADOS DA EMPRESA PÓS PROJECTO"]
[null,null,"  ",null,null,null,null,null,null,null,null,null,null,null,null,null,"Deverá contabilizar o incentivo em Subsidio á exploração, no ano que prevê receber o incentivo, não podendo ultrapassar o exercício seguinte ao da data da candidatura"]
[null,null,null,null,null,null,null,null,{"$f":"+'Balanço da empresa pós Proj'!I15:K15","v":"00:00:00"}]
[null,null,null,null,null,null,null,null,null,null,null,null,null,null,null,null,"EMPRESA PÓS PROJETO"]
[null,null,null,null,null,null,null,null,null,null,null,null,null,null,"Notas",null,{"$f":"IF(YEAR($I$15)=\"\",\"\",YEAR($I$15))","v":1900},{"$f":"IF(YEAR($I$15)=\"\",\"\",YEAR($I$15)+1)","v":1901},{"$f":"IF(YEAR($I$15)=\"\",\"\",YEAR($I$15)+2)","v":1902},{"$f":"IF(YEAR($I$15)=\"\",\"\",YEAR($I$15)+3)","v":1903},{"$f":"IF(YEAR($I$15)=\"\",\"\",YEAR($I$15)+4)","v":1904},{"$f":"IF(YEAR($I$15)=\"\",\"\",YEAR($I$15)+5)","v":1905},{"$f":"IF(YEAR($I$15)=\"\",\"\",YEAR($I$15)+6)","v":1906},{"$f":"IF(YEAR($I$15)=\"\",\"\",YEAR($I$15)+7)","v":1907},{"$f":"IF(YEAR($I$15)=\"\",\"\",YEAR($I$15)+8)","v":1908},{"$f":"IF(YEAR($I$15)=\"\",\"\",YEAR($I$15)+9)","v":1909}]
[null,null,null,"RENDIMENTOS E GASTOS"]
[null,null,null,"Vendas e serviços prestados",null,null,null,null,null,null,null,null,null,null,null,"+"]
[null,null,null,"Subsídios à exploração",null,null,null,null,null,null,null,null,null,null,null,"+"]
[null,null,null,"Ganhos/perdas imputados de subsidiárias, associadas e empreendimentos conjuntos",null,null,null,null,null,null,null,null,null,null,null,"+/-"]
[null,null,null,"Variação nos inventários da produção",null,null,null,null,null,null,null,null,null,null,null,"+/-"]
[null,null,null,"Trabalhos para a própria entidade",null,null,null,null,null,null,null,null,null,null,null,"+"]
[null,null,null,"Custo das mercadorias vendidas e das matérias consumidas",null,null,null,null,null,null,null,null,null,null,null,"-"]
[null,null,null,"Fornecimentos e serviços externos",null,null,null,null,null,null,null,null,null,null,null,"-"]
[null,null,null,"Gastos com o pessoal",null,null,null,null,null,null,null,null,null,null,null,"-"]
[null,null,null,"Imparidade de inventários (perdas/reversões)",null,null,null,null,null,null,null,null,null,null,null,"-/+"]
[null,null,null,"Imparidade de dívidas a receber (perdas/reversões)",null,null,null,null,null,null,null,null,null,null,null,"-/+"]
[null,null,null,"Provisões (perdas/reduções)",null,null,null,null,null,null,null,null,null,null,null,"-/+"]
[null,null,null,"Imparidade de investimentos não depreciáveis/amortizações (perdas/reversões)",null,null,null,null,null,null,null,null,null,null,null,"-/+"]
[null,null,null,"Aumentos/reduções de justo valor",null,null,null,null,null,null,null,null,null,null,null,"+/-"]
[null,null,null,"Outros rendimentos e ganhos",null,null,null,null,null,null,null,null,null,null,null,"+"]
[null,null,null,"Outros gastos e perdas",null,null,null,null,null,null,null,null,null,null,null,"-"]
[null,null,null,"Resultados antes de depreciações, gastos de financiamento e impostos",null,null,null,null,null,null,null,null,null,null,null,"=",{"$f":"SUM(Q19:Q33)","v":0},{"$f":"SUM(R19:R33)","v":0},0,0,{"$f":"SUM(U18:U33)","v":0},0,0,0,0,0]
[null,null,null,"Gastos/reversões de depreciação e de amortização",null,null,null,null,null,null,null,null,null,null,null,"-/+"]
[null,null,null,"Imparidade de investimentos depreciáveis/amorizáveis (perdas/reversões)",null,null,null,null,null,null,null,null,null,null,null,"-/+"]
[null,null,null,"Resultado operacional (antes de gastos de financiamento e impostos)",null,null,null,null,null,null,null,null,null,null,null,"=",{"$f":"+Q34+Q35+Q36","v":0},0,0,0,0,0,0,0,0,0]
[null,null,null,"Juros e rendimentos similares obtidos",null,null,null,null,null,null,null,null,null,null,null,"+"]
[null,null,null,"Juros e gastos similares suportados",null,null,null,null,null,null,null,null,null,null,null,"-"]
[null,null,null,"Resultado antes de impostos",null,null,null,null,null,null,null,null,null,null,null,"=",{"$f":"+Q37+Q38+Q39","v":0},0,0,0,0,0,0,0,0,0]
[null,null,null,"Imposto sobre o rendimento do período",null,null,null,null,null,null,null,null,null,null,null,"-/+"]
[null,null,null,"Resultado líquido do período",null,null,null,null,null,null,null,null,null,null,null,"=",{"$f":"+Q40+Q41","v":0},0,0,0,0,0,0,0,0,0]
[]
[null,null,null,"Resultado das actividades descontinuadas (líquido de impostos) incluido no resultado líquido do período"]
[]
[null,null,null,"Resultado líquido do período atribuível a: (2)"]
[null,null,null,"Detentores do capital da empresa-mãe"]
[null,null,null,"Interesses minoritários"]
[null,null,null,null,null,null,null,null,null,null,null,null,null,null,null,"=",{"$f":"+Q47+Q48","v":0},0,0,0,0,0,0,0,0,0]
[null,null,null,"Resultado por acção básico"]
[]
[null,null,null,"Outros Dados"]
[null,null,null,"Gastos de Amortização"]
[null,null,null,"Volume de Negócios Internacional "]

{"sheet":"Folha2","index":8,"n_rows":8,"n_cols":3,"rows_kept":8,"cut":false,"hidden":true,"merged":[]}
[]
[]
[null,null,"Sistemas de Incentivos"]
[null,null,"----- Escolha -----"]
[null,null,"INOVAR 2020"]
[null,null,"EMPREENDER 2020"]
[null,null,"INTERNACIONALIZAR 2020"]
[null,null,"PROCiência 2020"]